[Event "*** SCC Grand Prix: Titled Tuesday Blitz"]
[Site "Chess.com"]
[Date "2020.10.13"]
[Round "5"]
[White "BigAl"]
[Black "TorFredrikKaasen"]
[Result "0-1"]
[WhiteElo "2511"]
[BlackElo "2722"]
[TimeControl "180+1"]
[EndTime "10:57:40 PDT"]
[Termination "TorFredrikKaasen won by resignation"]

1. e4 {[%clk 0:03:00.9]} 1... e5 {[%clk 0:02:56.7]} 2. Bc4 {[%clk 0:02:59.9]}
2... Nf6 {[%clk 0:02:53.6]} 3. d3 {[%clk 0:03:00.4]} 3... Nc6 {[%clk 0:02:53.3]}
4. Nf3 {[%clk 0:03:01]} 4... Bc5 {[%clk 0:02:53]} 5. c3 {[%clk 0:03:01.4]} 5...
d6 {[%clk 0:02:48.8]} 6. Bb3 {[%clk 0:03:01.8]} 6... a6 {[%clk 0:02:45.9]} 7.
Nbd2 {[%clk 0:03:00.1]} 7... O-O {[%clk 0:02:43.4]} 8. h3 {[%clk 0:03:00.6]}
8... Be6 {[%clk 0:02:39.7]} 9. Bc2 {[%clk 0:03:00.1]} 9... Ba7 {[%clk
0:02:39.5]} 10. Nf1 {[%clk 0:02:59.1]} 10... d5 {[%clk 0:02:37.2]} 11. Ng5
{[%clk 0:02:56.2]} 11... h6 {[%clk 0:02:12.3]} 12. Nxe6 {[%clk 0:02:46.7]} 12...
fxe6 {[%clk 0:02:13.2]} 13. Ne3 {[%clk 0:02:39]} 13... d4 {[%clk 0:02:02]} 14.
Nc4 {[%clk 0:02:29.7]} 14... b5 {[%clk 0:01:54.8]} 15. Nd2 {[%clk 0:02:29.7]}
15... dxc3 {[%clk 0:01:47.3]} 16. bxc3 {[%clk 0:02:29.5]} 16... Bxf2+ {[%clk
0:01:47.4]} 17. Kxf2 {[%clk 0:02:18.6]} 17... Ng4+ {[%clk 0:01:28]} 18. Kg1
{[%clk 0:02:16]} 18... Ne3 {[%clk 0:01:28.4]} 19. Qe2 {[%clk 0:02:08.6]} 19...
Nxc2 {[%clk 0:01:28.5]} 20. Rb1 {[%clk 0:02:08.6]} 20... Qh4 {[%clk 0:01:06.3]}
21. Nf3 {[%clk 0:01:58.8]} 21... Qg3 {[%clk 0:01:01.5]} 22. Rb2 {[%clk 0:01:37]}
22... Na3 {[%clk 0:00:44.1]} 23. Be3 {[%clk 0:01:34.9]} 23... b4 {[%clk
0:00:43.4]} 24. cxb4 {[%clk 0:01:33.2]} 24... Nb5 {[%clk 0:00:43.9]} 25. Bf2
{[%clk 0:01:17.2]} 25... Qg6 {[%clk 0:00:43.7]} 26. Kh2 {[%clk 0:01:11.5]} 26...
Nbd4 {[%clk 0:00:35.1]} 27. Bxd4 {[%clk 0:01:08.5]} 27... Nxd4 {[%clk 0:00:36]}
28. Nxd4 {[%clk 0:01:05.4]} 28... exd4 {[%clk 0:00:36.9]} 29. Rc2 {[%clk
0:00:51.6]} 29... Qg5 {[%clk 0:00:36.5]} 30. Rhc1 {[%clk 0:00:46.1]} 30... Rf7
{[%clk 0:00:33.4]} 31. Qg4 {[%clk 0:00:35]} 31... Qe5+ {[%clk 0:00:33]} 32. Qg3
{[%clk 0:00:34.1]} 32... Qxg3+ {[%clk 0:00:21.2]} 33. Kxg3 {[%clk 0:00:34.5]}
33... Rb8 {[%clk 0:00:19.8]} 34. a3 {[%clk 0:00:34.4]} 34... a5 {[%clk
0:00:12.2]} 35. bxa5 {[%clk 0:00:31.9]} 35... Rb3 {[%clk 0:00:13.1]} 36. Rxc7
{[%clk 0:00:30.3]} 36... Rxd3+ {[%clk 0:00:12.8]} 37. Kh2 {[%clk 0:00:30.9]}
37... Rxc7 {[%clk 0:00:12]} 38. Rxc7 {[%clk 0:00:31.5]} 38... Rxa3 {[%clk
0:00:12.7]} 39. Rd7 {[%clk 0:00:25.8]} 39... Rxa5 {[%clk 0:00:07.3]} 40. Rxd4
{[%clk 0:00:25.9]} 40... Kf7 {[%clk 0:00:07.7]} 41. Rb4 {[%clk 0:00:20.5]} 41...
Kf6 {[%clk 0:00:08.1]} 42. Kg3 {[%clk 0:00:19.8]} 42... Ra3+ {[%clk 0:00:08.4]}
43. Kg4 {[%clk 0:00:18.2]} 43... Ra2 {[%clk 0:00:08.2]} 44. g3 {[%clk
0:00:17.7]} 44... g6 {[%clk 0:00:08.6]} 45. Rb8 {[%clk 0:00:09.4]} 45... h5+
{[%clk 0:00:07.8]} 46. Kh4 {[%clk 0:00:09.8]} 46... Ra4 {[%clk 0:00:08.4]} 47.
Rf8+ {[%clk 0:00:06]} 47... Kg7 {[%clk 0:00:08.3]} 48. Re8 {[%clk 0:00:06]}
48... Rxe4+ {[%clk 0:00:08.6]} 49. Kg5 {[%clk 0:00:06.4]} 49... Re5+ {[%clk
0:00:09.1]} 50. Kf4 {[%clk 0:00:04]} 50... Re1 {[%clk 0:00:08]} 51. Ra8 {[%clk
0:00:02.4]} 51... Kf6 {[%clk 0:00:06.3]} 52. Ra6 {[%clk 0:00:02.9]} 52... g5+
{[%clk 0:00:06.2]} 53. Kf3 {[%clk 0:00:03.5]} 53... Re5 {[%clk 0:00:06.7]} 54.
Kf2 {[%clk 0:00:03.3]} 54... Rb5 {[%clk 0:00:06.9]} 55. Ke3 {[%clk 0:00:03.7]}
55... Rb3+ {[%clk 0:00:07.4]} 56. Kf2 {[%clk 0:00:04.3]} 56... Kf5 {[%clk
0:00:08]} 57. Ra5+ {[%clk 0:00:04.3]} 57... e5 {[%clk 0:00:08.7]} 58. Ra8 {[%clk
0:00:04.7]} 58... Rb2+ {[%clk 0:00:09.2]} 59. Ke3 {[%clk 0:00:04.8]} 59... g4
{[%clk 0:00:09.8]} 60. Rf8+ {[%clk 0:00:04]} 60... Ke6 {[%clk 0:00:09.9]} 61. h4
{[%clk 0:00:04.3]} 61... Rb3+ {[%clk 0:00:09.9]} 62. Kf2 {[%clk 0:00:05]} 62...
e4 {[%clk 0:00:10.2]} 63. Rh8 {[%clk 0:00:03.8]} 63... Rf3+ {[%clk 0:00:10]} 64.
Kg2 {[%clk 0:00:04]} 64... Rf5 {[%clk 0:00:10.9]} 65. Rh6+ {[%clk 0:00:03.8]}
65... Kd5 {[%clk 0:00:11.3]} 66. Rg6 {[%clk 0:00:04]} 66... Kc4 {[%clk
0:00:11.4]} 67. Rg5 {[%clk 0:00:04.4]} 67... Rxg5 {[%clk 0:00:10.7]} 68. hxg5
{[%clk 0:00:04.8]} 68... Kd5 {[%clk 0:00:11.4]} 69. g6 {[%clk 0:00:04.8]} 69...
Ke6 {[%clk 0:00:11.8]} 70. Kf2 {[%clk 0:00:05.7]} 70... Kf6 {[%clk 0:00:12.1]}
71. Ke3 {[%clk 0:00:06.6]} 71... Kxg6 {[%clk 0:00:08.8]} 72. Kxe4 {[%clk
0:00:06.2]} 72... Kg5 {[%clk 0:00:09.3]} 73. Ke3 {[%clk 0:00:05.7]} 73... h4
{[%clk 0:00:09.9]} 74. gxh4+ {[%clk 0:00:05]} 74... Kxh4 {[%clk 0:00:10.8]} 75.
Kf2 {[%clk 0:00:05]} 75... Kh3 {[%clk 0:00:11.5]} 76. Kg1 {[%clk 0:00:05.2]}
76... Kg3 {[%clk 0:00:12.2]} 77. Kh1 {[%clk 0:00:05.8]} 77... Kf2 {[%clk
0:00:12.3]} 78. Kh2 {[%clk 0:00:05.5]} 78... g3+ {[%clk 0:00:13.2]} 79. Kh3
{[%clk 0:00:05.9]} 79... g2 {[%clk 0:00:14.1]} 80. Kh4 {[%clk 0:00:06.5]} 80...
g1=Q {[%clk 0:00:14.7]} 0-1

[Event "*** SCC Grand Prix: Titled Tuesday Blitz"]
[Site "Chess.com"]
[Date "2020.10.13"]
[Round "5"]
[White "Vision_64"]
[Black "Kotofeyca"]
[Result "1-0"]
[WhiteElo "2228"]
[BlackElo "2342"]
[TimeControl "180+1"]
[EndTime "10:57:50 PDT"]
[Termination "Vision_64 won by checkmate"]

1. e4 {[%clk 0:03:00.6]} 1... c5 {[%clk 0:02:22.1]} 2. Nf3 {[%clk 0:02:59.6]}
2... d6 {[%clk 0:02:22.5]} 3. d4 {[%clk 0:02:59.8]} 3... cxd4 {[%clk 0:02:23.4]}
4. Nxd4 {[%clk 0:03:00.6]} 4... Nf6 {[%clk 0:02:23.9]} 5. Nc3 {[%clk 0:03:01.1]}
5... a6 {[%clk 0:02:23.5]} 6. Bg5 {[%clk 0:03:01.7]} 6... e6 {[%clk 0:02:21.8]}
7. f4 {[%clk 0:03:01.9]} 7... Qb6 {[%clk 0:02:21.7]} 8. Qd2 {[%clk 0:03:00.9]}
8... Nc6 {[%clk 0:02:21.6]} 9. Nb3 {[%clk 0:02:52.4]} 9... Be7 {[%clk
0:02:19.3]} 10. O-O-O {[%clk 0:02:50.6]} 10... O-O {[%clk 0:02:17.2]} 11. Be2
{[%clk 0:02:31.7]} 11... Qc7 {[%clk 0:02:09.2]} 12. g4 {[%clk 0:02:26.7]} 12...
Rd8 {[%clk 0:02:07.2]} 13. h4 {[%clk 0:02:20.2]} 13... b5 {[%clk 0:02:06.1]} 14.
Bf3 {[%clk 0:02:15.4]} 14... b4 {[%clk 0:02:04.5]} 15. Ne2 {[%clk 0:02:13.2]}
15... Bb7 {[%clk 0:01:58]} 16. Kb1 {[%clk 0:02:11.4]} 16... e5 {[%clk 0:01:40]}
17. f5 {[%clk 0:02:04.2]} 17... a5 {[%clk 0:01:35.6]} 18. Bxf6 {[%clk
0:02:02.6]} 18... Bxf6 {[%clk 0:01:35.7]} 19. g5 {[%clk 0:02:02.6]} 19... Be7
{[%clk 0:01:36.2]} 20. f6 {[%clk 0:01:54.4]} 20... Bf8 {[%clk 0:01:32]} 21. fxg7
{[%clk 0:01:49.5]} 21... Bxg7 {[%clk 0:01:32]} 22. Ng3 {[%clk 0:01:49]} 22... a4
{[%clk 0:01:29.7]} 23. Nc1 {[%clk 0:01:48.6]} 23... a3 {[%clk 0:01:27.7]} 24. b3
{[%clk 0:01:43.3]} 24... Nd4 {[%clk 0:01:26.5]} 25. Be2 {[%clk 0:01:27.2]} 25...
d5 {[%clk 0:01:15.2]} 26. exd5 {[%clk 0:01:11.5]} 26... Bxd5 {[%clk 0:01:14.5]}
27. Rhf1 {[%clk 0:01:03.6]} 27... e4 {[%clk 0:00:56.8]} 28. Nh5 {[%clk
0:00:52.8]} 28... Qe5 {[%clk 0:00:44.3]} 29. Qxd4 {[%clk 0:00:23.5]} 29... Qxd4
{[%clk 0:00:43.6]} 30. Rxd4 {[%clk 0:00:24.4]} 30... Bxd4 {[%clk 0:00:43.5]} 31.
Nf6+ {[%clk 0:00:18.8]} 31... Bxf6 {[%clk 0:00:37.6]} 32. gxf6 {[%clk
0:00:19.7]} 32... Rd6 {[%clk 0:00:27.9]} 33. Bg4 {[%clk 0:00:16.7]} 33... Raa6
{[%clk 0:00:23.8]} 34. Rf5 {[%clk 0:00:15.8]} 34... Be6 {[%clk 0:00:20]} 35.
Rg5+ {[%clk 0:00:16]} 35... Kh8 {[%clk 0:00:17.9]} 36. Be2 {[%clk 0:00:15.2]}
36... Rd5 {[%clk 0:00:16.8]} 37. Bxa6 {[%clk 0:00:14.4]} 37... Rd1 {[%clk
0:00:14.9]} 38. Be2 {[%clk 0:00:13.5]} 38... Re1 {[%clk 0:00:13.6]} 39. Rc5
{[%clk 0:00:13.2]} 39... h6 {[%clk 0:00:13.5]} 40. Rb5 {[%clk 0:00:11.8]} 40...
e3 {[%clk 0:00:12.9]} 41. Rxb4 {[%clk 0:00:11.7]} 41... Rg1 {[%clk 0:00:12.3]}
42. Re4 {[%clk 0:00:11.5]} 42... Rg6 {[%clk 0:00:12.3]} 43. Rxe3 {[%clk
0:00:11.6]} 43... Rxf6 {[%clk 0:00:13.2]} 44. Nd3 {[%clk 0:00:11.5]} 44... Rf2
{[%clk 0:00:14.1]} 45. Bd1 {[%clk 0:00:11.2]} 45... Rf1 {[%clk 0:00:13.1]} 46.
Kc1 {[%clk 0:00:11.6]} 46... Rh1 {[%clk 0:00:12.5]} 47. Re1 {[%clk 0:00:11.9]}
47... Rxh4 {[%clk 0:00:12.9]} 48. Ne5 {[%clk 0:00:11.3]} 48... h5 {[%clk
0:00:13.2]} 49. c4 {[%clk 0:00:10.8]} 49... Kg7 {[%clk 0:00:13.6]} 50. Bc2
{[%clk 0:00:10.8]} 50... Rh2 {[%clk 0:00:13.9]} 51. Nd3 {[%clk 0:00:10.9]} 51...
h4 {[%clk 0:00:14.1]} 52. Nf4 {[%clk 0:00:11.1]} 52... Bg4 {[%clk 0:00:12.9]}
53. Rg1 {[%clk 0:00:11.5]} 53... f5 {[%clk 0:00:12.8]} 54. Bxf5 {[%clk
0:00:11.2]} 54... Kf6 {[%clk 0:00:11.1]} 55. Bxg4 {[%clk 0:00:11.3]} 55... Rxa2
{[%clk 0:00:11.2]} 56. Rg2 {[%clk 0:00:07.9]} 56... Ra1+ {[%clk 0:00:09.5]} 57.
Kc2 {[%clk 0:00:07.9]} 57... a2 {[%clk 0:00:09.7]} 58. Kb2 {[%clk 0:00:08.2]}
58... Rf1 {[%clk 0:00:10.2]} 59. Kxa2 {[%clk 0:00:08.5]} 59... Rxf4 {[%clk
0:00:11]} 60. Bd7 {[%clk 0:00:07.4]} 60... Ke5 {[%clk 0:00:11.7]} 61. Bc6 {[%clk
0:00:07.4]} 61... Rd4 {[%clk 0:00:10.7]} 62. Re2+ {[%clk 0:00:07.4]} 62... Kd6
{[%clk 0:00:09]} 63. Bd5 {[%clk 0:00:07.9]} 63... h3 {[%clk 0:00:08.9]} 64. Kb2
{[%clk 0:00:08]} 64... Rh4 {[%clk 0:00:09.4]} 65. Rh2 {[%clk 0:00:07.8]} 65...
Kc5 {[%clk 0:00:09.8]} 66. Kc3 {[%clk 0:00:07.8]} 66... Rh5 {[%clk 0:00:09.7]}
67. Kd3 {[%clk 0:00:08]} 67... Kd6 {[%clk 0:00:10.6]} 68. Ke3 {[%clk 0:00:08.2]}
68... Kc5 {[%clk 0:00:11.4]} 69. Kf3 {[%clk 0:00:08.4]} 69... Kb4 {[%clk
0:00:12]} 70. Kg4 {[%clk 0:00:08.7]} 70... Re5 {[%clk 0:00:10.2]} 71. Rxh3
{[%clk 0:00:08.9]} 71... Re1 {[%clk 0:00:10.6]} 72. Kf4 {[%clk 0:00:09.1]} 72...
Re7 {[%clk 0:00:10]} 73. Re3 {[%clk 0:00:08.8]} 73... Rg7 {[%clk 0:00:09.1]} 74.
Ke4 {[%clk 0:00:09]} 74... Rg2 {[%clk 0:00:08.5]} 75. Kd4 {[%clk 0:00:09.2]}
75... Rd2+ {[%clk 0:00:09]} 76. Rd3 {[%clk 0:00:09.5]} 76... Rd1 {[%clk
0:00:09.9]} 77. Rxd1 {[%clk 0:00:09.5]} 77... Kxb3 {[%clk 0:00:10.1]} 78. Rc1
{[%clk 0:00:10]} 78... Kb2 {[%clk 0:00:10.3]} 79. c5 {[%clk 0:00:10.1]} 79...
Ka3 {[%clk 0:00:11.2]} 80. c6 {[%clk 0:00:11]} 80... Kb2 {[%clk 0:00:12.1]} 81.
c7 {[%clk 0:00:11.9]} 81... Ka3 {[%clk 0:00:12.9]} 82. c8=Q {[%clk 0:00:12.3]}
82... Kb2 {[%clk 0:00:13.8]} 83. Qc3# {[%clk 0:00:12.3]} 1-0

[Event "*** SCC Grand Prix: Titled Tuesday Blitz"]
[Site "Chess.com"]
[Date "2020.10.13"]
[Round "5"]
[White "semchik73"]
[Black "Beltraxtor"]
[Result "1/2-1/2"]
[WhiteElo "2364"]
[BlackElo "2547"]
[TimeControl "180+1"]
[EndTime "10:57:55 PDT"]
[Termination "Game drawn - insufficient material"]

1. Nf3 {[%clk 0:02:59.8]} 1... d5 {[%clk 0:02:55.8]} 2. c4 {[%clk 0:03:00.3]}
2... c6 {[%clk 0:02:51.5]} 3. e3 {[%clk 0:03:00]} 3... Bf5 {[%clk 0:02:51.6]} 4.
Nc3 {[%clk 0:03:00.2]} 4... e6 {[%clk 0:02:51.6]} 5. d4 {[%clk 0:02:59.7]} 5...
Nf6 {[%clk 0:02:49.8]} 6. Bd3 {[%clk 0:02:59.7]} 6... Bxd3 {[%clk 0:02:48.6]} 7.
Qxd3 {[%clk 0:02:59.7]} 7... Nbd7 {[%clk 0:02:49.2]} 8. O-O {[%clk 0:02:59.3]}
8... Bb4 {[%clk 0:02:49.4]} 9. a3 {[%clk 0:02:41.4]} 9... Bxc3 {[%clk
0:02:41.3]} 10. bxc3 {[%clk 0:02:41.5]} 10... Ne4 {[%clk 0:02:42.1]} 11. Nd2
{[%clk 0:02:38.3]} 11... f5 {[%clk 0:02:35.2]} 12. f3 {[%clk 0:02:32.7]} 12...
Nxd2 {[%clk 0:02:34.2]} 13. Bxd2 {[%clk 0:02:32.3]} 13... O-O {[%clk 0:02:29.3]}
14. cxd5 {[%clk 0:02:32.8]} 14... exd5 {[%clk 0:02:29.2]} 15. e4 {[%clk
0:02:31.9]} 15... fxe4 {[%clk 0:02:24.6]} 16. fxe4 {[%clk 0:02:32.5]} 16... dxe4
{[%clk 0:02:24]} 17. Qxe4 {[%clk 0:02:32.1]} 17... Nf6 {[%clk 0:02:21.9]} 18.
Qe6+ {[%clk 0:02:31.1]} 18... Kh8 {[%clk 0:02:21.6]} 19. Bg5 {[%clk 0:02:31.1]}
19... Qd5 {[%clk 0:02:20]} 20. Qxd5 {[%clk 0:02:16.9]} 20... Nxd5 {[%clk
0:02:20.9]} 21. c4 {[%clk 0:02:17.3]} 21... Nc3 {[%clk 0:02:20.6]} 22. Rfe1
{[%clk 0:02:00.8]} 22... Rae8 {[%clk 0:02:12.9]} 23. Be3 {[%clk 0:01:35.4]}
23... Rf7 {[%clk 0:01:54.2]} 24. Rac1 {[%clk 0:01:30.2]} 24... Ne4 {[%clk
0:01:48.9]} 25. d5 {[%clk 0:01:25.8]} 25... cxd5 {[%clk 0:01:42.2]} 26. cxd5
{[%clk 0:01:26]} 26... b6 {[%clk 0:01:41.8]} 27. Bxb6 {[%clk 0:01:17.4]} 27...
h6 {[%clk 0:01:39.1]} 28. Bc7 {[%clk 0:01:11.2]} 28... Rd7 {[%clk 0:01:31.3]}
29. Rc4 {[%clk 0:00:45.8]} 29... Nf6 {[%clk 0:01:15.5]} 30. Rxe8+ {[%clk
0:00:46.1]} 30... Nxe8 {[%clk 0:01:15.8]} 31. Bg3 {[%clk 0:00:43.7]} 31... Kg8
{[%clk 0:00:59.8]} 32. d6 {[%clk 0:00:43.5]} 32... Kf7 {[%clk 0:00:55.1]} 33.
Rf4+ {[%clk 0:00:30.5]} 33... Ke6 {[%clk 0:00:51.6]} 34. Re4+ {[%clk 0:00:29.4]}
34... Kf7 {[%clk 0:00:51.9]} 35. Ra4 {[%clk 0:00:19.3]} 35... Ke6 {[%clk
0:00:46.3]} 36. Ra6 {[%clk 0:00:15.2]} 36... Nf6 {[%clk 0:00:37.5]} 37. Kf2
{[%clk 0:00:14.9]} 37... Ne4+ {[%clk 0:00:37.5]} 38. Kf3 {[%clk 0:00:15]} 38...
Nxg3 {[%clk 0:00:19.1]} 39. Kxg3 {[%clk 0:00:14.6]} 39... Rxd6 {[%clk
0:00:19.6]} 40. Rxa7 {[%clk 0:00:15.2]} 40... Kf6 {[%clk 0:00:20]} 41. Kf2
{[%clk 0:00:15]} 41... Rd3 {[%clk 0:00:20]} 42. h3 {[%clk 0:00:13.7]} 42... Rb3
{[%clk 0:00:20.1]} 43. a4 {[%clk 0:00:12.4]} 43... h5 {[%clk 0:00:18.6]} 44. a5
{[%clk 0:00:12.6]} 44... Ra3 {[%clk 0:00:19]} 45. a6 {[%clk 0:00:12.3]} 45... g6
{[%clk 0:00:17.3]} 46. Ra8 {[%clk 0:00:12]} 46... Kg7 {[%clk 0:00:17.3]} 47. a7
{[%clk 0:00:10.3]} 47... Kh7 {[%clk 0:00:17]} 48. Ke2 {[%clk 0:00:09]} 48... h4
{[%clk 0:00:15.4]} 49. Kd2 {[%clk 0:00:09.1]} 49... Kg7 {[%clk 0:00:13.9]} 50.
Kc2 {[%clk 0:00:09.2]} 50... Ra2+ {[%clk 0:00:12.3]} 51. Kb3 {[%clk 0:00:08]}
51... Ra6 {[%clk 0:00:12]} 52. Kb4 {[%clk 0:00:08.1]} 52... Ra2 {[%clk
0:00:11.1]} 53. Kb5 {[%clk 0:00:08.2]} 53... Rb2+ {[%clk 0:00:10.8]} 54. Kc6
{[%clk 0:00:08.2]} 54... Rc2+ {[%clk 0:00:09.7]} 55. Kb7 {[%clk 0:00:08.2]}
55... Rb2+ {[%clk 0:00:08.9]} 56. Kc6 {[%clk 0:00:08.6]} 56... Ra2 {[%clk
0:00:09.2]} 57. Kb6 {[%clk 0:00:07.8]} 57... Rb2+ {[%clk 0:00:09.3]} 58. Kc5
{[%clk 0:00:08]} 58... Ra2 {[%clk 0:00:07.7]} 59. Kd5 {[%clk 0:00:07.2]} 59...
g5 {[%clk 0:00:02.5]} 60. Ke5 {[%clk 0:00:07.3]} 60... Ra5+ {[%clk 0:00:02.2]}
61. Ke4 {[%clk 0:00:07]} 61... Ra4+ {[%clk 0:00:02]} 62. Kf5 {[%clk 0:00:07.3]}
62... Ra5+ {[%clk 0:00:02.5]} 63. Kg4 {[%clk 0:00:07.3]} 63... Kh7 {[%clk
0:00:02.2]} 64. Kh5 {[%clk 0:00:07.1]} 64... Kg7 {[%clk 0:00:01.9]} 65. Kg4
{[%clk 0:00:05.9]} 65... Kh7 {[%clk 0:00:02.3]} 66. Kh5 {[%clk 0:00:06.5]} 66...
Kg7 {[%clk 0:00:02.7]} 67. Rb8 {[%clk 0:00:06.6]} 67... Rxa7 {[%clk 0:00:02.5]}
68. Kxg5 {[%clk 0:00:07.2]} 68... Ra2 {[%clk 0:00:03]} 69. Kxh4 {[%clk
0:00:06.2]} 69... Rxg2 {[%clk 0:00:02.7]} 70. Rb5 {[%clk 0:00:06.3]} 70... Kh6
{[%clk 0:00:02.7]} 71. Rb6+ {[%clk 0:00:06.3]} 71... Rg6 {[%clk 0:00:03.3]} 72.
Rxg6+ {[%clk 0:00:03.9]} 72... Kxg6 {[%clk 0:00:03.5]} 73. Kg4 {[%clk
0:00:04.5]} 73... Kh6 {[%clk 0:00:04.1]} 74. h4 {[%clk 0:00:05.1]} 74... Kg6
{[%clk 0:00:04.3]} 75. h5+ {[%clk 0:00:05.7]} 75... Kh6 {[%clk 0:00:05.2]} 76.
Kh4 {[%clk 0:00:06.2]} 76... Kh7 {[%clk 0:00:05.6]} 77. Kg4 {[%clk 0:00:06.9]}
77... Kg7 {[%clk 0:00:06.5]} 78. Kf5 {[%clk 0:00:07.5]} 78... Kh6 {[%clk
0:00:06.6]} 79. Kf6 {[%clk 0:00:07.7]} 79... Kh7 {[%clk 0:00:07.5]} 80. Kf7
{[%clk 0:00:05.9]} 80... Kh6 {[%clk 0:00:07.9]} 81. Kf6 {[%clk 0:00:05.8]} 81...
Kxh5 {[%clk 0:00:08.8]} 1/2-1/2

[Event "*** SCC Grand Prix: Titled Tuesday Blitz"]
[Site "Chess.com"]
[Date "2020.10.13"]
[Round "5"]
[White "mapleaff"]
[Black "AldokhinIvan"]
[Result "1-0"]
[WhiteElo "2365"]
[BlackElo "2537"]
[TimeControl "180+1"]
[EndTime "10:58:04 PDT"]
[Termination "mapleaff won by checkmate"]

1. d4 {[%clk 0:03:00.9]} 1... Nf6 {[%clk 0:02:48]} 2. c4 {[%clk 0:03:01]} 2...
g6 {[%clk 0:02:43.1]} 3. Nc3 {[%clk 0:03:00.6]} 3... Bg7 {[%clk 0:02:43.8]} 4.
Nf3 {[%clk 0:03:00.2]} 4... d6 {[%clk 0:02:44.7]} 5. Bg5 {[%clk 0:03:00]} 5...
O-O {[%clk 0:02:44.8]} 6. e3 {[%clk 0:03:00.1]} 6... Nc6 {[%clk 0:02:45.4]} 7.
Be2 {[%clk 0:02:59.5]} 7... e5 {[%clk 0:02:33.5]} 8. dxe5 {[%clk 0:02:58.6]}
8... dxe5 {[%clk 0:02:19.2]} 9. Qxd8 {[%clk 0:02:57.2]} 9... Nxd8 {[%clk
0:02:15.2]} 10. Nxe5 {[%clk 0:02:54.1]} 10... Ne6 {[%clk 0:02:14.3]} 11. Bh4
{[%clk 0:02:42.9]} 11... Nc5 {[%clk 0:02:00.5]} 12. Nd3 {[%clk 0:02:21.1]} 12...
Nfe4 {[%clk 0:01:48]} 13. Nxe4 {[%clk 0:02:09.5]} 13... Nxe4 {[%clk 0:01:48.9]}
14. Be7 {[%clk 0:02:08.5]} 14... Re8 {[%clk 0:01:46.9]} 15. Ba3 {[%clk
0:02:07.5]} 15... Bf5 {[%clk 0:01:44.1]} 16. O-O {[%clk 0:02:06.1]} 16... Rad8
{[%clk 0:01:32.9]} 17. Rfd1 {[%clk 0:01:58.4]} 17... b6 {[%clk 0:01:20.3]} 18.
Nf4 {[%clk 0:01:52]} 18... c5 {[%clk 0:01:12.5]} 19. Nd5 {[%clk 0:01:43.5]}
19... Rd6 {[%clk 0:00:45.2]} 20. f3 {[%clk 0:01:31.8]} 20... Ng5 {[%clk
0:00:40.5]} 21. Ne7+ {[%clk 0:01:20.9]} 21... Rxe7 {[%clk 0:00:40.3]} 22. Rxd6
{[%clk 0:01:21.2]} 22... Rxe3 {[%clk 0:00:35.3]} 23. Rd8+ {[%clk 0:01:20.5]}
23... Bf8 {[%clk 0:00:35.1]} 24. Kf2 {[%clk 0:01:17.7]} 24... Re7 {[%clk
0:00:23.4]} 25. Rad1 {[%clk 0:01:10.8]} 25... Ne6 {[%clk 0:00:09.7]} 26. R8d7
{[%clk 0:01:09.5]} 26... Nd4 {[%clk 0:00:09.9]} 27. Rxe7 {[%clk 0:01:07.5]}
27... Bxe7 {[%clk 0:00:10.8]} 28. Bd3 {[%clk 0:01:06.4]} 28... Be6 {[%clk
0:00:10.9]} 29. b3 {[%clk 0:01:05.5]} 29... Bd6 {[%clk 0:00:11.3]} 30. g3 {[%clk
0:01:00.2]} 30... h5 {[%clk 0:00:11.4]} 31. Be4 {[%clk 0:00:54.5]} 31... Be5
{[%clk 0:00:11.4]} 32. Kg2 {[%clk 0:00:49.9]} 32... Kg7 {[%clk 0:00:11.4]} 33.
Bb2 {[%clk 0:00:43.6]} 33... h4 {[%clk 0:00:11.6]} 34. Rd2 {[%clk 0:00:33.7]}
34... h3+ {[%clk 0:00:11.6]} 35. Kf2 {[%clk 0:00:33.4]} 35... f5 {[%clk
0:00:11.8]} 36. Bd5 {[%clk 0:00:31.4]} 36... Bc8 {[%clk 0:00:11.9]} 37. f4
{[%clk 0:00:24.3]} 37... Bf6 {[%clk 0:00:11.7]} 38. Kf1 {[%clk 0:00:15.9]} 38...
g5 {[%clk 0:00:11.2]} 39. fxg5 {[%clk 0:00:15.3]} 39... Be5 {[%clk 0:00:09.9]}
40. Re2 {[%clk 0:00:12.1]} 40... Bd6 {[%clk 0:00:06.4]} 41. Re8 {[%clk
0:00:11.1]} 41... Ba6 {[%clk 0:00:03]} 42. Rg8+ {[%clk 0:00:10.7]} 42... Kh7
{[%clk 0:00:03]} 43. g6+ {[%clk 0:00:11]} 43... Kh6 {[%clk 0:00:03]} 44. Bf7
{[%clk 0:00:09]} 44... Be5 {[%clk 0:00:03.3]} 45. Bc1+ {[%clk 0:00:07.6]} 45...
f4 {[%clk 0:00:03.1]} 46. Bxf4+ {[%clk 0:00:06]} 46... Bxf4 {[%clk 0:00:03.5]}
47. gxf4 {[%clk 0:00:06.9]} 47... Bb7 {[%clk 0:00:04]} 48. Rh8+ {[%clk
0:00:05.6]} 48... Kg7 {[%clk 0:00:03.9]} 49. Rh7+ {[%clk 0:00:05.6]} 49... Kf6
{[%clk 0:00:04.4]} 50. Bd5 {[%clk 0:00:05.8]} 50... Bc8 {[%clk 0:00:04.8]} 51.
Rc7 {[%clk 0:00:05.5]} 51... Bf5 {[%clk 0:00:04.3]} 52. g7 {[%clk 0:00:05.6]}
52... Bh7 {[%clk 0:00:04.4]} 53. g8=Q {[%clk 0:00:04.5]} 53... Bxg8 {[%clk
0:00:04.9]} 54. Bxg8 {[%clk 0:00:05.2]} 54... Kf5 {[%clk 0:00:05.8]} 55. Bd5
{[%clk 0:00:05.5]} 55... Kxf4 {[%clk 0:00:06]} 56. Kf2 {[%clk 0:00:05.5]} 56...
Nc2 {[%clk 0:00:06]} 57. Rf7+ {[%clk 0:00:05.7]} 57... Kg4 {[%clk 0:00:06.4]}
58. Rxa7 {[%clk 0:00:06.6]} 58... Nb4 {[%clk 0:00:05.9]} 59. Rg7+ {[%clk
0:00:06.9]} 59... Kf4 {[%clk 0:00:05.8]} 60. Rh7 {[%clk 0:00:07.2]} 60... Kg4
{[%clk 0:00:06.1]} 61. Be6+ {[%clk 0:00:07.3]} 61... Kf4 {[%clk 0:00:06.4]} 62.
Bxh3 {[%clk 0:00:07.7]} 62... Nd3+ {[%clk 0:00:05.9]} 63. Kf1 {[%clk 0:00:08.1]}
63... Nb4 {[%clk 0:00:06.8]} 64. Bg2 {[%clk 0:00:08.2]} 64... Ke3 {[%clk
0:00:07.1]} 65. h4 {[%clk 0:00:07.8]} 65... Nxa2 {[%clk 0:00:07.4]} 66. Rf7
{[%clk 0:00:08]} 66... Nc1 {[%clk 0:00:04.9]} 67. h5 {[%clk 0:00:08.1]} 67...
Nd3 {[%clk 0:00:02.4]} 68. h6 {[%clk 0:00:07.6]} 68... Ne5 {[%clk 0:00:03.3]}
69. Re7 {[%clk 0:00:07.2]} 69... Kf4 {[%clk 0:00:03.9]} 70. Rxe5 {[%clk
0:00:07.6]} 70... Kxe5 {[%clk 0:00:04.8]} 71. h7 {[%clk 0:00:08.5]} 71... Kd4
{[%clk 0:00:05.7]} 72. h8=Q+ {[%clk 0:00:08.5]} 72... Kd3 {[%clk 0:00:06.6]} 73.
Qb8 {[%clk 0:00:06.3]} 73... Kc2 {[%clk 0:00:07.5]} 74. Qxb6 {[%clk 0:00:06.4]}
74... Kc3 {[%clk 0:00:08.4]} 75. Qxc5 {[%clk 0:00:06.6]} 75... Kb2 {[%clk
0:00:08.1]} 76. Qb5 {[%clk 0:00:07]} 76... Kc2 {[%clk 0:00:08.4]} 77. c5 {[%clk
0:00:07.9]} 77... Kb2 {[%clk 0:00:08.6]} 78. c6 {[%clk 0:00:08.8]} 78... Ka2
{[%clk 0:00:09]} 79. c7 {[%clk 0:00:09.7]} 79... Kb2 {[%clk 0:00:09.4]} 80. Qc4
{[%clk 0:00:09.7]} 80... Ka2 {[%clk 0:00:10.3]} 81. b4+ {[%clk 0:00:10.3]} 81...
Ka1 {[%clk 0:00:11.1]} 82. b5 {[%clk 0:00:10.2]} 82... Kb2 {[%clk 0:00:11.8]}
83. b6 {[%clk 0:00:10.3]} 83... Ka1 {[%clk 0:00:12.7]} 84. b7 {[%clk 0:00:09.4]}
84... Kb1 {[%clk 0:00:13.6]} 85. b8=Q+ {[%clk 0:00:08.3]} 85... Ka1 {[%clk
0:00:14.5]} 86. Qa6# {[%clk 0:00:07.7]} 1-0